[Event "European Womens-ch 2025"]
[Site "Rhodes"]
[Date "2025.04.03"]
[Round "4.58"]
[White "Paasikangas, Johanna"]
[Black "Alexandri, Vasiliki"]
[Result "1-0"]
[Annotator "RC"]
[ECO "C97"]
[WhiteElo "2106"]
[BlackElo "1927"]
[PlyCount "119"]
[EventDate "2025.03.29"]
[EventType "swiss"]
[EventCountry "GRE"]
[SourceTitle "playchess.com"]
[Source "ChessBase"]
[SourceQuality "1"]
[TimeControl "40/5400+30:1800+30"]

1. e4 {[%emt 0:00:06]} e5 {[%emt 0:00:12]} 2. Nf3 {[%emt 0:00:38]} Nc6 {[%emt 0:00:06]} 3. Bb5 {[%emt 0:00:07]} a6 {[%emt 0:00:18]} 4. Ba4 {[%emt 0:00:09]} Nf6 {[%emt 0:00:15]} 5. O-O {[%emt 0:00:14]} b5 {[%emt 0:00:44]} 6. Bb3 {[%emt 0:00:11]} Be7 {[%emt 0:00:25]} 7. c3 {[%emt 0:02:02]} d6 {[%emt 0:00:37]} 8. Re1 {[%emt 0:01:06]} O-O {[%emt 0:00:09]} 9. h3 {[%emt 0:00:40]} Na5 {[%emt 0:00:12]} 10. Bc2 {[%emt 0:00:09]} c5 {[%emt 0:00:13]} 11. d4 {[%emt 0:01:31]} Qc7 {[%emt 0:00:17]} 12. d5 {[%emt 0:01:02]} Bd7 {[%emt 0:00:34]} 13. b3 {[%emt 0:02:05]} Nb7 {[%emt 0:00:33]} 14. Nbd2 {[%emt 0:04:56]} g6 {[%emt 0:01:02]} 15. Nf1 {[%emt 0:02:59]} Nh5 {[%emt 0:01:32]} 16. Bh6 {[%emt 0:03:00]} Ng7 {[%emt 0:01:55]} 17. g4 {[%emt 0:03:45]} f6 {[%emt 0:04:10]} 18. Ng3 {[%emt 0:04:12]} Nd8 {[%emt 0:03:02]} 19. Qd2 {[%emt 0:05:50]} Nf7 {[%emt 0:03:08]} 20. Be3 {[%emt 0:01:44]} Rfb8 {[%emt 0:05:47]} 21. Rec1 {[%emt 0:21:18]} a5 {[%emt 1:15:49]} 22. b4 {[%emt 0:08:22]} axb4 {[%emt 0:00:00]} 23. cxb4 {[%emt 0:00:09]} c4 {[%emt 0:00:00]} 24. Qc3 {[%emt 0:03:05]} Qb7 {[%emt 0:00:00]} 25. Nd2 {[%emt 0:03:54]} Bd8 {[%emt 0:00:00]} 26. Rcb1 {[%emt 0:03:27]} Rc8 {[%emt 0:00:00]} 27. a3 {[%emt 0:05:26]} Bb6 {[%emt 0:00:00]} 28. Ra2 {[%emt 0:00:16]} Ng5 {[%emt 0:00:00]} 29. Kg2 {[%emt 0:05:53]} Bxe3 {[%emt 0:00:00]} 30. Qxe3 {[%emt 0:05:03]} c3 {[%emt 0:00:00]} 31. Nb3 {[%emt 0:01:42]} h5 {[%emt 0:00:00]} 32. f3 {[%emt 0:03:06]} h4 {[%emt 0:00:00]} 33. Ne2 {[%emt 0:02:46]} Qa7 {[%emt 0:00:00]} 34. Qxa7 {[%emt 0:00:10]} Rxa7 {[%emt 0:00:00]} 35. Rc1 {[%emt 0:01:23]} f5 {[%emt 0:00:00]} 36. Bd3 {[%emt 0:01:27]} fxg4 {[%emt 0:03:23]} 37. fxg4 {[%emt 0:00:35]} Rf8 {[%emt 0:02:58]} 38. Ng1 {[%emt 0:01:05]} Rc7 {[%emt 0:00:47]} 39. Rac2 {[%emt 0:00:19]} Rfc8 {[%emt 0:01:14]} 40. Na5 {[%emt 0:00:00]} Ne8 {[%emt 0:00:00]} 41. Ne2 {[%emt 0:08:02]} Nf6 {[%emt 0:03:41]} 42. Nc6 {[%emt 0:02:23]} Bxc6 {[%emt 0:01:45]} 43. dxc6 {[%emt 0:02:27]} Ngxe4 {[%emt 0:05:37]} 44. Bxb5 {[%emt 0:02:33]} d5 {[%emt 0:06:29]} 45. Nxc3 {[%emt 0:01:06]} Nd6 {[%emt 0:01:13]} 46. a4 {[%emt 0:03:37]} d4 {[%emt 0:01:19]} 47. Rf2 {[%emt 0:04:20]} Nxg4 {[%emt 0:06:52]} 48. hxg4 {[%emt 0:00:38]} dxc3 {[%emt 0:00:10]} 49. Re2 {[%emt 0:01:23]} e4 {[%emt 0:02:46]} 50. Rxc3 {[%emt 0:00:39]} Kg7 {[%emt 0:02:02]} 51. Rc5 {[%emt 0:01:51]} Kf6 {[%emt 0:01:12]} 52. g5+ {[%emt 0:01:06]} Ke6 {[%emt 0:00:12]} 53. Kh3 {[%emt 0:00:10]} Ra8 {[%emt 0:01:43]} 54. Bc4+ {[%emt 0:02:20]} Nxc4 {[%emt 0:01:18]} 55. Rxe4+ {[%emt 0:02:16]} Kd6 {[%emt 0:00:47]} 56. Rd4+ {[%emt 0:00:21]} Ke6 {[%emt 0:00:19]} 57. Rdxc4 {[%emt 0:01:16]} Rxa4 {[%emt 0:00:09]} 58. b5 {[%emt 0:01:24]} Ra3+ {[%emt 0:00:16]} 59. Rc3 {[%emt 0:00:22]} Ra1 {[%emt 0:01:59]} 60. b6 {[%emt 0:00:39]} 1-0

[Event "European Womens-ch 2025"]
[Site "Rhodes"]
[Date "2025.04.03"]
[Round "4.59"]
[White "Harutyunyan, Gabriela"]
[Black "Zagorac, Lara"]
[Result "0-1"]
[Annotator "RC"]
[ECO "C78"]
[WhiteElo "1793"]
[BlackElo "2106"]
[PlyCount "120"]
[EventDate "2025.03.29"]
[EventType "swiss"]
[EventCountry "GRE"]
[SourceTitle "playchess.com"]
[Source "ChessBase"]
[SourceQuality "1"]
[TimeControl "40/5400+30:1800+30"]

1. e4 {[%emt 0:00:13]} e5 {[%emt 0:00:12]} 2. Nf3 {[%emt 0:00:11]} Nc6 {[%emt 0:00:14]} 3. Bb5 {[%emt 0:00:00]} a6 {[%emt 0:00:30]} 4. Ba4 {[%emt 0:00:14]} Nf6 {[%emt 1:31:34]} 5. O-O {[%emt 0:00:19]} b5 {[%emt 0:00:00]} 6. Bb3 {[%emt 0:00:09]} Bc5 {[%emt 0:01:00]} 7. d3 {[%emt 1:32:54]} d6 {[%emt 0:00:30]} 8. c3 {[%emt 0:00:30]} h6 {[%emt 0:00:00]} 9. h3 O-O {[%emt 0:00:00]} 10. Qe2 Be6 {[%emt 0:00:00]} 11. Be3 Bxe3 {[%emt 0:00:00]} 12. Qxe3 d5 {[%emt 0:00:00]} 13. Nbd2 Qe7 {[%emt 0:00:00]} 14. Rac1 Rad8 {[%emt 0:00:00]} 15. d4 dxe4 {[%emt 0:04:00]} 16. Nxe5 {[%emt 0:04:00]} Nxe5 {[%emt 0:00:00]} 17. dxe5 {[%emt 0:00:00]} Nd7 {[%emt 0:00:00]} 18. Bc2 {[%emt 0:00:00]} Bd5 {[%emt 0:00:00]} 19. Nxe4 {[%emt 0:00:00]} Qxe5 {[%emt 0:00:00]} 20. f4 {[%emt 0:00:00]} Qe6 {[%emt 0:00:00]} 21. Rfe1 {[%emt 0:00:00]} Rfe8 {[%emt 0:00:00]} 22. Qg3 {[%emt 0:00:05]} Qb6+ {[%emt 0:00:00]} 23. Kh2 {[%emt 0:00:57]} Bxe4 {[%emt 0:00:00]} 24. Bxe4 {[%emt 0:00:57]} Qf6 {[%emt 0:00:00]} 25. Rcd1 {[%emt 0:00:51]} Nc5 {[%emt 0:05:00]} 26. Bc2 {[%emt 0:02:10]} Nb7 {[%emt 0:00:00]} 27. Bb3 {[%emt 0:00:00]} Nd6 {[%emt 0:00:00]} 28. Bc2 {[%emt 0:00:11]} Rxe1 {[%emt 0:00:00]} 29. Rxe1 {[%emt 0:00:09]} Nf5 {[%emt 0:00:00]} 30. Qg4 {[%emt 0:00:09]} Nd6 {[%emt 0:00:00]} 31. Qg3 {[%emt 0:00:17]} g6 {[%emt 0:00:00]} 32. Qf3 {[%emt 0:01:35]} a5 {[%emt 0:00:00]} 33. a4 {[%emt 0:00:31]} b4 {[%emt 0:00:00]} 34. cxb4 {[%emt 0:00:04]} Qxb2 {[%emt 0:00:14]} 35. Bb3 {[%emt 0:00:17]} Nf5 {[%emt 0:01:04]} 36. Re2 {[%emt 0:00:36]} Qf6 {[%emt 0:00:28]} 37. Qf2 {[%emt 0:01:08]} axb4 {[%emt 0:00:57]} 38. a5 {[%emt 0:00:28]} Qc3 {[%emt 0:02:06]} 39. Rb2 {[%emt 0:00:30]} Qf6 {[%emt 0:01:30]} 40. Bc4 {[%emt 0:00:00]} c5 {[%emt 0:00:00]} 41. a6 {[%emt 0:03:41]} Nd6 {[%emt 0:12:50]} 42. Bd5 {[%emt 0:07:22]} Nb5 {[%emt 0:03:15]} 43. Rd2 {[%emt 0:00:53]} Kg7 {[%emt 0:16:36]} 44. g3 {[%emt 0:06:24]} Qxa6 {[%emt 0:00:00]} 45. Qe2 {[%emt 0:06:35]} Qb6 {[%emt 0:00:00]} 46. Qe7 {[%emt 0:07:33]} Qf6 {[%emt 0:00:00]} 47. Qxc5 {[%emt 0:00:51]} Nc3 {[%emt 0:02:00]} 48. Qxb4 {[%emt 0:00:38]} Nxd5 {[%emt 0:00:00]} 49. Qa5 {[%emt 0:00:42]} Qd6 {[%emt 0:00:00]} 50. Qa1+ {[%emt 0:00:32]} Kg8 {[%emt 0:00:00]} 51. Qa5 {[%emt 0:00:37]} Rd7 {[%emt 0:00:00]} 52. Qa8+ {[%emt 0:00:19]} Kg7 {[%emt 0:00:00]} 53. Qa5 {[%emt 0:00:50]} Qe6 {[%emt 0:00:00]} 54. Qb5 {[%emt 0:00:36]} Nf6 {[%emt 0:00:00]} 55. Re2 {[%emt 0:00:16]} Qd5 {[%emt 0:00:45]} 56. Qb8 {[%emt 0:00:43]} Qd3 {[%emt 0:00:21]} 57. Rg2 {[%emt 0:00:10]} Re7 {[%emt 0:00:21]} 58. Qb2 {[%emt 0:00:08]} Qe3 {[%emt 0:00:49]} 59. Qa1 {[%emt 0:00:43]} h5 {[%emt 0:00:09]} 60. Qf1 {[%emt 0:00:47]} Qe1 {[%emt 0:00:38]} 0-1

[Event "European Womens-ch 2025"]
[Site "Rhodes"]
[Date "2025.04.03"]
[Round "4.60"]
[White "Donghvani, Nia"]
[Black "Kalyva, Kyriaki"]
[Result "1-0"]
[Annotator "NA RC"]
[ECO "A11"]
[WhiteElo "2025"]
[BlackElo "1885"]
[PlyCount "43"]
[EventDate "2025.03.29"]
[EventType "swiss"]
[EventCountry "GRE"]
[SourceTitle "playchess.com"]
[Source "ChessBase"]
[SourceQuality "1"]
[TimeControl "40/5400+30:1800+30"]

1. Nf3 {[%emt 0:00:15]} Nf6 {[%emt 0:00:06]} 2. c4 {[%emt 0:00:42]} c6 {[%emt 0:00:16]} 3. e3 {[%emt 0:00:37]} d5 {[%emt 0:00:34]} 4. Nc3 {[%emt 0:01:15]} e6 {[%emt 0:01:34]} 5. b3 {[%emt 0:02:03]} Nbd7 {[%emt 0:02:30]} 6. Qc2 {[%emt 0:02:31]} b6 {[%emt 0:02:45]} 7. Bb2 {[%emt 0:06:05]} Bb7 {[%emt 0:05:08]} 8. Be2 {[%emt 0:07:55]} Rc8 {[%emt 0:03:34]} 9. Rg1 {[%emt 0:09:11]} Qc7 {[%emt 0:14:18]} 10. g4 {[%emt 0:10:14]} h6 {[%emt 0:09:10]} 11. h4 {[%emt 0:07:00]} dxc4 {[%emt 0:08:38]} 12. bxc4 {[%emt 0:01:40]} h5 {[%emt 0:01:21]} 13. gxh5 {[%emt 0:08:58]} c5 {[%emt 0:09:07]} 14. O-O-O {[%emt 0:10:30]} Rxh5 {[%emt 0:05:02]} 15. Ng5 {[%emt 0:05:09]} Rxh4 {[%emt 0:08:21]} 16. f4 {[%emt 0:00:04]} a6 {[%emt 0:01:32]} 17. Bd3 {[%emt 0:04:36]} b5 {[%emt 0:03:22]} 18. Bg6 {[%emt 0:03:54]} Ke7 {[%emt 0:08:32]} 19. Bxf7 {[%emt 0:00:58]} b4 {[%emt 0:00:59]} 20. Ne2 {[%emt 0:02:06]} Qa5 {[%emt 0:08:48]} 21. Bxe6 {[%emt 0:00:20]} Rh6 {[%emt 0:02:23]} 22. Ng3 {[%emt 0:03:49]} 1-0

[Event "European Womens-ch 2025"]
[Site "Rhodes"]
[Date "2025.04.03"]
[Round "4.61"]
[White "Kiousi, Panagiota"]
[Black "Szente Varga, Fruzsina"]
[Result "1-0"]
[Annotator "NA RC"]
[ECO "E73"]
[WhiteElo "1998"]
[BlackElo "2083"]
[PlyCount "59"]
[EventDate "2025.03.29"]
[EventType "swiss"]
[EventCountry "GRE"]
[SourceTitle "playchess.com"]
[Source "ChessBase"]
[SourceQuality "1"]
[TimeControl "40/5400+30:1800+30"]

1. d4 {[%emt 0:00:04]} Nf6 {[%emt 0:01:14]} 2. c4 {[%emt 0:00:04]} g6 {[%emt 0:00:12]} 3. Nc3 {[%emt 0:00:03]} Bg7 {[%emt 0:00:06]} 4. e4 {[%emt 0:00:07]} d6 {[%emt 0:00:01]} 5. Be2 {[%emt 0:00:07]} O-O {[%emt 0:00:05]} 6. Be3 {[%emt 0:00:03]} e5 {[%emt 0:00:07]} 7. d5 {[%emt 0:00:04]} Na6 {[%emt 0:00:57]} 8. g4 {[%emt 0:00:12]} Nc5 {[%emt 0:00:05]} 9. f3 {[%emt 0:00:07]} a5 {[%emt 0:00:29]} 10. h4 {[%emt 0:00:07]} Nfd7 {[%emt 0:00:47]} 11. h5 {[%emt 0:00:09]} f5 {[%emt 0:12:08]} 12. hxg6 {[%emt 0:00:36]} hxg6 {[%emt 0:00:04]} 13. exf5 {[%emt 0:01:22]} gxf5 {[%emt 0:00:35]} 14. Qc2 {[%emt 0:01:13]} Qf6 {[%emt 0:04:35]} 15. g5 {[%emt 0:08:41]} Qe7 {[%emt 1:16:35]} 16. O-O-O {[%emt 0:05:57]} e4 {[%emt 0:00:00]} 17. f4 {[%emt 0:02:42]} a4 {[%emt 0:00:00]} 18. Nh3 {[%emt 0:25:00]} a3 {[%emt 0:00:00]} 19. b4 {[%emt 0:04:05]} Na6 {[%emt 0:00:00]} 20. Qb3 {[%emt 0:00:14]} c5 {[%emt 0:00:00]} 21. dxc6 {[%emt 0:01:50]} bxc6 {[%emt 0:00:00]} 22. Rxd6 {[%emt 0:01:41]} c5 {[%emt 0:00:00]} 23. Nb5 {[%emt 0:23:30]} Nxb4 {[%emt 0:00:00]} 24. Bd2 {[%emt 0:03:04]} Nc6 {[%emt 0:00:00]} 25. Rxc6 {[%emt 0:02:58]} Bb7 {[%emt 0:00:00]} 26. Rg6 {[%emt 0:03:29]} e3 {[%emt 0:00:00]} 27. Bc3 {[%emt 0:00:16]} Bxh1 {[%emt 0:00:00]} 28. Rxg7+ {[%emt 0:00:22]} Qxg7 {[%emt 0:00:00]} 29. Bxg7 {[%emt 0:00:06]} Kxg7 {[%emt 0:00:00]} 30. Qd1 {[%emt 0:03:53]} 1-0

[Event "European Womens-ch 2025"]
[Site "Rhodes"]
[Date "2025.04.03"]
[Round "4.62"]
[White "Bhatia, Kanishka"]
[Black "Silva, Ana Ines Teixeira Da"]
[Result "1-0"]
[Annotator "ChessBase"]
[ECO "D37"]
[WhiteElo "2012"]
[BlackElo "1893"]
[PlyCount "107"]
[EventDate "2025.03.29"]
[EventType "swiss"]
[EventCountry "GRE"]
[SourceTitle "playchess.com"]
[Source "ChessBase"]
[SourceQuality "1"]
[TimeControl "40/5400+30:1800+30"]

1. Nf3 {[%emt 0:00:05]} d5 {[%emt 0:00:08]} 2. d4 {[%emt 0:00:06]} Nf6 {[%emt 0:00:07]} 3. c4 {[%emt 0:00:12]} e6 {[%emt 0:00:09]} 4. Nc3 {[%emt 0:00:07]} a6 {[%emt 0:00:22]} 5. cxd5 {[%emt 0:00:09]} exd5 {[%emt 0:00:08]} 6. Bg5 {[%emt 0:00:07]} Be6 {[%emt 0:01:07]} 7. e3 {[%emt 0:00:24]} Bd6 {[%emt 0:04:18]} 8. Bd3 {[%emt 0:00:39]} Nbd7 {[%emt 0:01:11]} 9. O-O {[%emt 0:01:04]} c6 {[%emt 0:00:57]} 10. a3 {[%emt 0:01:28]} Qc7 {[%emt 0:08:59]} 11. b4 {[%emt 0:08:38]} O-O {[%emt 0:03:05]} 12. Bh4 {[%emt 0:09:38]} h6 {[%emt 0:07:22]} 13. Bg3 {[%emt 0:01:14]} Bxg3 {[%emt 0:02:38]} 14. hxg3 {[%emt 0:00:18]} Rfe8 {[%emt 0:05:43]} 15. Nd2 {[%emt 0:02:32]} Nb6 {[%emt 0:07:45]} 16. Na4 {[%emt 0:02:44]} Bg4 {[%emt 0:06:04]} 17. Qc2 {[%emt 0:00:21]} Nxa4 {[%emt 0:01:40]} 18. Qxa4 {[%emt 0:00:07]} Ne4 {[%emt 0:05:13]} 19. Qc2 {[%emt 0:03:57]} Nd6 {[%emt 0:07:37]} 20. Rfc1 {[%emt 0:01:35]} Qe7 {[%emt 0:05:07]} 21. a4 {[%emt 0:02:16]} Rac8 {[%emt 0:04:30]} 22. Qb3 {[%emt 0:01:41]} b5 {[%emt 0:01:30]} 23. axb5 {[%emt 0:01:17]} axb5 {[%emt 0:00:11]} 24. Qc3 {[%emt 0:02:33]} Nc4 {[%emt 0:02:08]} 25. Re1 {[%emt 0:03:03]} Qg5 {[%emt 0:05:09]} 26. Nxc4 {[%emt 0:01:04]} bxc4 {[%emt 0:01:29]} 27. Bc2 {[%emt 0:00:17]} h5 {[%emt 0:02:51]} 28. e4 {[%emt 0:03:20]} h4 {[%emt 0:01:48]} 29. gxh4 {[%emt 0:00:12]} Qxh4 {[%emt 0:00:17]} 30. e5 {[%emt 0:00:48]} Re6 {[%emt 0:02:04]} 31. f3 {[%emt 0:03:35]} Qg3 {[%emt 0:02:20]} 32. Qe3 {[%emt 0:00:38]} Bh5 {[%emt 0:06:10]} 33. Bf5 {[%emt 0:00:45]} Rce8 {[%emt 0:02:14]} 34. f4 {[%emt 0:38:37]} Qxe3+ {[%emt 0:02:50]} 35. Rxe3 {[%emt 0:00:01]} R6e7 {[%emt 0:01:48]} 36. Ra6 {[%emt 0:00:13]} Rc7 {[%emt 0:00:24]} 37. Bc2 {[%emt 0:03:18]} Rb8 {[%emt 0:00:48]} 38. Kh2 {[%emt 0:00:07]} Bg4 {[%emt 0:00:19]} 39. f5 {[%emt 0:01:28]} Kf8 {[%emt 0:00:50]} 40. Kg3 {[%emt 0:00:00]} Bh5 {[%emt 0:00:00]} 41. Kh4 {[%emt 0:00:44]} c5 {[%emt 0:06:40]} 42. bxc5 {[%emt 0:03:02]} Rb2 {[%emt 0:04:09]} 43. Ra8+ {[%emt 0:03:24]} Ke7 {[%emt 0:00:14]} 44. Ba4 {[%emt 0:00:10]} f6 {[%emt 0:04:25]} 45. Kxh5 {[%emt 0:00:22]} g6+ {[%emt 0:04:16]} 46. fxg6 {[%emt 0:00:20]} fxe5 {[%emt 0:00:46]} 47. Rxe5+ {[%emt 0:00:14]} Kf6 {[%emt 0:00:10]} 48. Rf8+ {[%emt 0:00:53]} Kg7 {[%emt 0:00:10]} 49. Ref5 {[%emt 0:00:57]} Rxg2 {[%emt 0:01:16]} 50. R8f7+ {[%emt 0:00:16]} Rxf7 {[%emt 0:00:06]} 51. Rxf7+ {[%emt 0:00:20]} Kg8 {[%emt 0:00:27]} 52. c6 {[%emt 0:00:27]} Rh2+ {[%emt 0:01:39]} 53. Kg5 {[%emt 0:00:17]} Rg2+ {[%emt 0:00:22]} 54. Kf6 {[%emt 0:00:14]} 1-0

[Event "European Womens-ch 2025"]
[Site "Rhodes"]
[Date "2025.04.03"]
[Round "4.63"]
[White "Alexandri, Dimitra"]
[Black "Valkova, Angelika"]
[Result "1-0"]
[Annotator "NA RC"]
[ECO "B07"]
[WhiteElo "1995"]
[BlackElo "2001"]
[PlyCount "55"]
[EventDate "2025.03.29"]
[EventType "swiss"]
[EventCountry "GRE"]
[SourceTitle "playchess.com"]
[Source "ChessBase"]
[SourceQuality "1"]
[TimeControl "40/5400+30:1800+30"]

1. d4 {[%emt 0:00:03]} d6 {[%emt 0:00:04]} 2. e4 {[%emt 0:00:26]} Nf6 {[%emt 1:31:26]} 3. Nc3 {[%emt 0:00:13]} e5 {[%emt 0:00:30]} 4. dxe5 {[%emt 0:21:21]} dxe5 {[%emt 0:00:00]} 5. Qxd8+ {[%emt 0:00:39]} Kxd8 {[%emt 0:00:00]} 6. Nf3 {[%emt 0:01:10]} Bd6 {[%emt 0:00:00]} 7. Bc4 {[%emt 0:09:49]} Ke7 {[%emt 0:00:00]} 8. Bg5 {[%emt 0:01:38]} c6 {[%emt 0:00:00]} 9. O-O-O {[%emt 0:59:41]} Bc7 {[%emt 0:00:00]} 10. Rd2 {[%emt 0:00:00]} Be6 {[%emt 0:00:00]} 11. Bxe6 {[%emt 0:00:00]} Kxe6 {[%emt 0:00:00]} 12. Rhd1 {[%emt 0:00:00]} Nbd7 {[%emt 0:00:00]} 13. Be3 {[%emt 0:00:00]} b5 {[%emt 0:00:00]} 14. Ng5+ {[%emt 0:00:00]} Ke7 {[%emt 0:00:00]} 15. Nxf7 {[%emt 0:00:00]} Rhf8 {[%emt 0:00:00]} 16. Nd6 {[%emt 0:00:00]} g6 {[%emt 0:00:00]} 17. Nb7 {[%emt 0:00:00]} Bb6 {[%emt 0:00:00]} 18. Bg5 {[%emt 0:00:00]} Kf7 {[%emt 0:00:00]} 19. Rxd7+ {[%emt 0:00:00]} Nxd7 {[%emt 0:00:00]} 20. Rxd7+ {[%emt 0:00:00]} Kg8 {[%emt 0:00:00]} 21. Nd6 {[%emt 0:00:00]} Rxf2 {[%emt 0:00:00]} 22. Bh6 {[%emt 0:00:00]} Kh8 {[%emt 0:00:00]} 23. Nf7+ {[%emt 0:00:00]} Kg8 {[%emt 0:00:00]} 24. Nxe5 {[%emt 0:00:00]} Kh8 {[%emt 0:00:00]} 25. Ng4 {[%emt 0:00:00]} Rf1+ {[%emt 0:00:00]} 26. Nd1 {[%emt 0:00:00]} Rd8 {[%emt 0:00:00]} 27. Bg7+ {[%emt 0:00:00]} Kg8 {[%emt 0:00:00]} 28. Nh6# {[%emt 0:00:00]} 1-0

[Event "European Womens-ch 2025"]
[Site "Rhodes"]
[Date "2025.04.03"]
[Round "4.64"]
[White "Mitraka, Chrysoula-Paraskevi"]
[Black "Tirpan, Ceren"]
[Result "0-1"]
[Annotator "NA RC"]
[ECO "A53"]
[WhiteElo "1820"]
[BlackElo "1996"]
[PlyCount "90"]
[EventDate "2025.03.29"]
[EventType "swiss"]
[EventCountry "GRE"]
[SourceTitle "playchess.com"]
[Source "ChessBase"]
[SourceQuality "1"]
[TimeControl "40/5400+30:1800+30"]

1. d4 {[%emt 0:00:35]} Nf6 {[%emt 0:00:05]} 2. c4 {[%emt 0:00:10]} d6 {[%emt 0:00:04]} 3. Nc3 {[%emt 0:00:27]} e5 {[%emt 0:00:05]} 4. dxe5 {[%emt 0:00:37]} dxe5 {[%emt 0:00:06]} 5. Qxd8+ {[%emt 0:00:26]} Kxd8 {[%emt 0:00:06]} 6. Nf3 {[%emt 0:00:23]} Nbd7 {[%emt 0:00:50]} 7. Bg5 {[%emt 0:05:45]} c6 {[%emt 0:01:55]} 8. O-O-O {[%emt 0:02:07]} Kc7 {[%emt 0:01:59]} 9. a3 {[%emt 0:03:03]} b6 {[%emt 0:02:12]} 10. e3 {[%emt 0:01:48]} Bd6 {[%emt 0:02:38]} 11. Be2 {[%emt 0:02:49]} a5 {[%emt 0:04:15]} 12. Nd2 {[%emt 0:05:50]} Nc5 {[%emt 0:04:05]} 13. Bxf6 {[%emt 0:02:36]} gxf6 {[%emt 0:02:56]} 14. Nce4 {[%emt 0:01:14]} Nxe4 {[%emt 0:01:08]} 15. Nxe4 {[%emt 0:00:20]} Be7 {[%emt 0:00:02]} 16. Rd2 {[%emt 0:03:50]} f5 {[%emt 0:03:02]} 17. Nc3 {[%emt 0:10:01]} a4 {[%emt 0:03:20]} 18. h4 {[%emt 0:10:11]} Be6 {[%emt 0:00:27]} 19. g3 {[%emt 0:02:28]} Rhg8 {[%emt 0:02:49]} 20. Rdd1 {[%emt 0:06:59]} f4 {[%emt 0:05:52]} 21. exf4 {[%emt 0:00:58]} exf4 {[%emt 0:00:06]} 22. Rhg1 {[%emt 0:02:10]} fxg3 {[%emt 0:01:34]} 23. fxg3 {[%emt 0:00:28]} Bc5 {[%emt 0:00:12]} 24. Rg2 {[%emt 0:03:36]} Bh3 {[%emt 0:07:14]} 25. Rh2 {[%emt 0:02:45]} Rxg3 {[%emt 0:03:15]} 26. Ne4 {[%emt 0:11:52]} Be3+ {[%emt 0:00:13]} 27. Kc2 {[%emt 0:02:41]} Bf5 {[%emt 0:00:32]} 28. Bd3 {[%emt 0:01:50]} Rg4 {[%emt 0:05:47]} 29. Nc3 {[%emt 0:03:40]} Be6 {[%emt 0:06:59]} 30. Re1 {[%emt 0:07:34]} Bd4 {[%emt 0:01:13]} 31. Re4 {[%emt 0:02:38]} h5 {[%emt 0:02:49]} 32. Be2 {[%emt 0:02:31]} Bf5 {[%emt 0:01:30]} 33. Bxg4 {[%emt 0:01:05]} hxg4 {[%emt 0:00:06]} 34. Kc1 {[%emt 0:00:56]} Bxe4 {[%emt 0:01:37]} 35. Nxe4 {[%emt 0:00:05]} f5 {[%emt 0:00:06]} 36. Nd2 {[%emt 0:01:14]} Rh8 {[%emt 0:02:35]} 37. Nf1 {[%emt 0:00:37]} f4 {[%emt 0:00:10]} 38. Re2 {[%emt 0:00:36]} g3 {[%emt 0:00:39]} 39. Re4 {[%emt 0:00:27]} g2 {[%emt 0:00:11]} 40. Rxd4 {[%emt 0:00:00]} gxf1=Q+ {[%emt 0:00:00]} 41. Kc2 {[%emt 0:04:25]} Rxh4 {[%emt 0:01:19]} 42. c5 {[%emt 0:04:28]} Rh2+ {[%emt 0:00:34]} 43. Kc3 {[%emt 0:02:09]} Qc1+ {[%emt 0:00:38]} 44. Kb4 {[%emt 0:03:06]} Qxc5+ {[%emt 0:00:36]} 45. Kxa4 {[%emt 0:01:07]} Qb5# {[%emt 0:00:34]} 0-1

[Event "European Womens-ch 2025"]
[Site "Rhodes"]
[Date "2025.04.03"]
[Round "4.65"]
[White "Kaka, Rengina Tsampika"]
[Black "Bania, Eleni"]
[Result "0-1"]
[Annotator "NA COMBH"]
[ECO "A48"]
[WhiteElo "1509"]
[BlackElo "1809"]
[PlyCount "98"]
[EventDate "2025.03.29"]
[EventType "swiss"]
[EventCountry "GRE"]
[SourceTitle "playchess.com"]
[Source "ChessBase"]
[SourceQuality "1"]
[TimeControl "40/5400+30:1800+30"]

1. d4 {[%emt 0:00:04]} Nf6 {[%emt 0:00:03]} 2. Bf4 {[%emt 0:00:21]} g6 {[%emt 0:00:04]} 3. e3 {[%emt 0:00:19]} Bg7 {[%emt 0:00:07]} 4. Nf3 {[%emt 0:00:26]} d6 {[%emt 0:00:04]} 5. Bd3 {[%emt 0:00:35]} O-O {[%emt 0:00:06]} 6. O-O {[%emt 0:00:48]} Nbd7 {[%emt 0:00:07]} 7. Nbd2 {[%emt 0:00:48]} Qe8 {[%emt 0:00:36]} 8. Bg3 {[%emt 0:05:09]} e5 {[%emt 0:02:17]} 9. e4 {[%emt 0:06:03]} Nh5 {[%emt 0:08:55]} 10. d5 {[%emt 0:03:11]} Nxg3 {[%emt 0:07:25]} 11. hxg3 {[%emt 0:00:24]} Qe7 {[%emt 0:01:02]} 12. Nh4 {[%emt 0:02:59]} h5 {[%emt 0:03:09]} 13. Ndf3 {[%emt 0:04:05]} Bh6 {[%emt 0:05:32]} 14. a3 {[%emt 0:02:14]} a5 {[%emt 0:02:33]} 15. Qe2 {[%emt 0:04:05]} Nb6 {[%emt 0:02:39]} 16. b4 {[%emt 0:03:31]} Re8 {[%emt 0:08:13]} 17. c4 {[%emt 0:04:04]} Kf8 {[%emt 0:17:31]} 18. Rfe1 {[%emt 0:04:48]} axb4 {[%emt 0:00:16]} 19. axb4 {[%emt 0:00:33]} Rxa1 {[%emt 0:00:09]} 20. Rxa1 {[%emt 0:00:21]} g5 {[%emt 0:00:15]} 21. Nf5 {[%emt 0:01:02]} Bxf5 {[%emt 0:00:12]} 22. c5 {[%emt 0:07:31]} dxc5 {[%emt 0:03:06]} 23. bxc5 {[%emt 0:00:48]} Nxd5 {[%emt 0:00:56]} 24. exd5 {[%emt 0:04:03]} Bxd3 {[%emt 0:04:17]} 25. Qxd3 {[%emt 0:01:33]} e4 {[%emt 0:00:11]} 26. d6 {[%emt 0:01:41]} cxd6 {[%emt 0:01:53]} 27. cxd6 {[%emt 0:00:52]} Qd7 {[%emt 0:02:22]} 28. Ne5 {[%emt 0:02:57]} Rxe5 {[%emt 0:06:27]} 29. Qd4 {[%emt 0:02:30]} f6 {[%emt 0:06:24]} 30. Ra8+ {[%emt 0:02:49]} Kg7 {[%emt 0:03:00]} 31. Qc4 {[%emt 0:01:27]} Re6 {[%emt 0:00:13]} 32. Rb8 {[%emt 0:03:27]} Kg6 {[%emt 0:04:31]} 33. Rxb7 {[%emt 0:01:14]} Qxd6 {[%emt 0:00:24]} 34. Kh2 {[%emt 0:01:22]} h4 {[%emt 0:00:14]} 35. Qc8 {[%emt 0:01:46]} hxg3+ {[%emt 0:00:16]} 36. fxg3 {[%emt 0:00:17]} Bg7 {[%emt 0:01:07]} 37. Rd7 {[%emt 0:03:01]} Qc6 {[%emt 0:01:16]} 38. Rc7 {[%emt 0:01:33]} Qe8 {[%emt 0:00:14]} 39. Qb7 {[%emt 0:01:31]} Qh8+ {[%emt 0:00:43]} 40. Kg1 {[%emt 0:00:00]} f5 {[%emt 0:00:00]} 41. Qd5 {[%emt 0:02:36]} Bd4+ {[%emt 0:03:27]} 42. Kf1 {[%emt 0:00:51]} Qh1+ {[%emt 0:00:02]} 43. Ke2 {[%emt 0:00:24]} Qxg2+ {[%emt 0:00:05]} 44. Kd1 {[%emt 0:00:37]} Qf1+ {[%emt 0:00:12]} 45. Kc2 {[%emt 0:00:50]} Qd3+ {[%emt 0:00:06]} 46. Kc1 {[%emt 0:01:10]} Be3+ {[%emt 0:00:05]} 47. Kb2 {[%emt 0:00:23]} Rb6+ {[%emt 0:00:19]} 48. Ka2 {[%emt 0:00:44]} Qa6+ {[%emt 0:00:33]} 49. Qa5 {[%emt 0:00:15]} Qxa5# {[%emt 0:00:04]} 0-1